[Event "Slovakian ECo-C Extraliga 2024-25"]
[Site "Slovakia"]
[Date "2025.01.18"]
[Round "3"]
[White "Schwarz, Dusan"]
[Black "Jurcik, Martin"]
[Result "0-1"]
[Annotator "TA"]
[ECO "D31"]
[WhiteElo "2264"]
[BlackElo "2349"]
[PlyCount "58"]
[EventDate "2024.09.12"]
[EventType "team-tourn"]
[EventCountry "SVK"]
[SourceTitle "playchess.com"]
[Source "ChessBase"]
[SourceQuality "1"]
[TimeControl "5400+30"]

{[%evp 9,58,-47,-21,-40,-23,-27,-31,-6,0,0,7,-49,-62,-145,-121,-112,-72,-76,-84,-92,-102,-139,-139,-132,-142,-152,-146,-271,-271,-262,-262,-282,-270,-277,-262,-304,-284,-626,-610,-608,-597,-1074,-534,-1160,-616,-1148,-1132,-29980,-29981,-29993,-932]} 1. d4 {[%emt 0:00:04]} d5 {[%emt 0:00:24]} 2. c4 {[%emt 0:00:11]} e6 {[%emt 0:00:46]} 3. Nc3 {[%emt 0:00:10]} dxc4 {[%emt 0:01:39]} 4. e4 {[%emt 0:00:53]} a6 {[%emt 0:00:59]} 5. a4 {[%emt 0:09:17]} Nc6 {[%emt 0:00:52]} 6. Be3 {[%emt 0:00:21]} Na5 {[%emt 0:00:44]} 7. Nf3 {[%emt 0:00:52]} Bb4 {[%emt 0:03:05]} 8. Ne5 {[%emt 0:04:00][%cal Od1g4]} Qh4 {[%emt 0:04:44]} 9. Qf3 {[%emt 0:05:26]} Nf6 {[%emt 0:01:29]} 10. g4 {[%emt 0:07:18]} (10. Bf4 $1 $11) 10... O-O $15 {[%emt 0:03:21]} 11. Bf4 {[%emt 0:09:56]} (11. Be2 $15 Nb3 12. Rd1) 11... Nd7 {[%emt 0:24:25]} 12. Nxc4 {[%emt 0:02:57]} Nc6 {[%emt 0:08:51]} 13. Rd1 {[%emt 0:06:00] [#]} e5 $1 {[%emt 0:03:59]} 14. dxe5 {[%emt 0:12:13]} b5 {[%emt 0:11:54]} 15. axb5 {[%emt 0:05:50]} axb5 {[%emt 0:00:05]} 16. Ne3 {[%emt 0:03:28]} Ndxe5 {[%emt 0:00:57] Black is more active.} 17. Qg3 {[%emt 0:00:25]} Qxg3 {[%emt 0:04:44]} 18. fxg3 {[%emt 0:00:19]} (18. hxg3 $17 Nf3+ (18... Bxg4 19. Nxg4 Nxg4 20. Bxb5 $11) (18... Nxg4 19. Bxb5 Nxe3 20. Bxe3 $11) 19. Ke2 Ncd4+ 20. Kd3) 18... Ra2 $19 {[%emt 0:04:37]} (18... Bxg4 19. Nxg4 Nxg4 20. h3 $11 (20. Bxb5 Nce5 $15)) (18... Nxg4 19. Ned5 $15) 19. Ned5 {[%emt 0:07:39]} Rxb2 {[%emt 0:02:20]} (19... Nxg4 $2 20. Nxb4 (20. Bxc7 Rxb2 21. Bxb5 Bxc3+ 22. Nxc3 Nge5 $15) (20. Bxb5 Na7 $11) 20... Nxb4 21. Nxa2 (21. Bxc7 $2 {perishes.} Rxb2 22. Rb1 Rxb1+ 23. Nxb1 Bd7 $19) 21... Nxa2 22. Bxb5 $18 (22. Bxc7 Bb7 $18)) 20. Be2 {[%emt 0:00:08] Wards off Nf3+} Bxc3+ {[%emt 0:01:15]} ({Much less strong is} 20... Nxg4 21. Nxb4 Nxb4 22. O-O $19) 21. Nxc3 {[%emt 0:00:07]} Bxg4 {[%emt 0:01:01]} 22. Bxg4 {[%emt 0:03:17]} Nxg4 {[%emt 0:00:11] A dynamic duo of knights.} 23. Rd7 $2 {[%emt 0:05:14]} (23. O-O) 23... Nce5 {[%emt 0:09:17]} (23... Rxh2 24. Rxh2 Nxh2 25. Rxc7 $15) 24. Bxe5 {[%emt 0:01:54]} Nxe5 {[%emt 0:00:03]} 25. Rxc7 {[%emt 0:00:40]} b4 {[%emt 0:01:59]} (25... Nd3+ $142 26. Kf1 f5) 26. Nd1 {[%emt 0:06:08]} Nd3+ {[%emt 0:01:22]} 27. Kf1 {[%emt 0:00:04]} Rd2 {[%emt 0:00:06]} 28. Ne3 {[%emt 0:00:29]} Ra8 {[%emt 0:00:49]} 29. Kg1 {[%emt 0:00:40]} Nf2 {[%emt 0:01:41]} (29... Ra1+ $142 30. Nf1 g6 31. h3 Rf2 32. Rc8+ Kg7 33. Rc1 Rxc1 34. h4 Rcxf1#) 0-1

[Event "Slovakian ECo-C Extraliga 2024-25"]
[Site "Slovakia"]
[Date "2025.01.18"]
[Round "3"]
[White "Krak, Tomas"]
[Black "Zvarik, Martin"]
[Result "1/2-1/2"]
[Annotator "TA"]
[ECO "E11"]
[WhiteElo "2253"]
[BlackElo "2166"]
[PlyCount "30"]
[EventDate "2024.09.12"]
[EventType "team-tourn"]
[EventCountry "SVK"]
[SourceTitle "playchess.com"]
[Source "ChessBase"]
[SourceQuality "1"]
[TimeControl "5400+30"]

{[%evp 10,30,28,7,8,4,6,8,21,13,15,0,0,0,0,0,-7,0,0,6,12,0,34]} 1. d4 {[%emt 0:15:19]} Nf6 {[%emt 0:01:03]} 2. c4 {[%emt 0:00:05]} e6 {[%emt 0:00:23]} 3. Nf3 {[%emt 0:00:22]} Bb4+ {[%emt 0:00:33]} 4. Nbd2 {[%emt 0:01:14]} O-O {[%emt 0:07:29]} 5. a3 {[%emt 0:01:55]} Be7 {[%emt 0:01:40]} 6. e3 {[%emt 0:04:05]} b6 {[%emt 0:07:09]} 7. Bd3 {[%emt 0:03:57]} c5 {[%emt 0:08:04]} 8. O-O {[%emt 0:11:02]} Nc6 {[%emt 0:02:13]} 9. b3 {[%emt 0:04:43]} Bb7 {[%emt 0:10:51]} 10. dxc5 {[%emt 0:04:43]} bxc5 {[%emt 0:02:18]} 11. Qc2 {[%emt 0:00:56]} h6 {[%emt 0:09:18]} 12. Bb2 {[%emt 0:03:17]} Qc7 {[%emt 0:01:57]} 13. Rfd1 {[%emt 0:09:31]} Rab8 {[%emt 0:03:28]} 14. Rab1 {[%emt 0:05:01]} Ba8 {[%emt 0:04:09]} 15. Qc3 {[%emt 0:04:33]} Qa5 {[%emt 0:05:49]} 1/2-1/2

[Event "Slovakian ECo-C Extraliga 2024-25"]
[Site "Slovakia"]
[Date "2025.01.18"]
[Round "3.1"]
[White "Michalik, Peter"]
[Black "Karacsonyi, Gellert"]
[Result "1-0"]
[Annotator "TA"]
[ECO "D24"]
[WhiteElo "2558"]
[BlackElo "2384"]
[PlyCount "97"]
[EventDate "2024.09.12"]
[EventType "team-tourn"]
[EventCountry "SVK"]
[SourceTitle "playchess.com"]
[Source "ChessBase"]
[SourceQuality "1"]
[TimeControl "5400+30"]

{[%evp 9,97,32,60,40,42,43,57,44,53,52,62,23,32,18,31,18,36,25,67,0,0,-56,-15,-62,109,40,111,130,211,166,189,141,231,217,206,215,204,202,180,192,184,182,207,204,322,325,332,339,464,478,518,525,510,500,499,514,508,517,491,496,707,740,716,554,735,526,543,541,547,547,643,626,860,840,918,937,1318,1560,2416,1878,1885,1600,2434,2528,2700,2693,6095,4132,29980,29981]} 1. d4 {[%emt 0:00:04]} Nf6 {[%emt 0:00:08]} 2. c4 {[%emt 0:00:06]} e6 {[%emt 0:00:09]} 3. Nf3 {[%emt 0:00:07]} d5 {[%emt 0:00:08]} 4. Nc3 {[%emt 0:00:06]} dxc4 {[%emt 0:00:15]} 5. e4 {[%emt 0:00:15][%cal Be2e4,Be4e5][%mdl 32]} b5 {[%emt 0:00:07]} 6. e5 $1 {[%emt 0:00:07] D24: Queen's Gambit Accepted: 3 Nf3 Nf6 4 Nc3.} (6. Nxb5 Nxe4 7. Qa4 (7. Bxc4 Bb4+ 8. Ke2 O-O $11) 7... c6 $11) 6... Nd5 {[%emt 0:00:05]} 7. Nxb5 {[%emt 0:00:09]} Nb6 {[%emt 0:00:07]} 8. Be2 {[%emt 0:00:18] White is slightly better.} Nc6 {[%emt 0:00:26]} 9. Be3 {[%emt 0:00:08]} Be7 {[%emt 0:01:17]} 10. a3 {[%emt 0:00:33] White is more active.} Qd7 {[%emt 0:00:07]} 11. Nc3 {[%emt 0:00:30]} Bb7 {[%emt 0:02:57]} 12. Qc2 {[%emt 0:01:44]} Na5 {[%emt 0:00:10]} 13. Rd1 {[%emt 0:09:40]} f5 {[%emt 0:00:10]} 14. h4 $5 {[%emt 0:00:30][%mdl 4] A promising side line.} (14. exf6 $14 gxf6 15. O-O) 14... O-O $11 {[%emt 0:14:36]} 15. h5 $146 {[%emt 0:04:52]} ({Only move:} 15. Kf1 $1 $11) (15. Rg1 Rad8 16. Ng5 Bxg5 17. Bxg5 Rb8 18. h5 h6 19. Bh4 Nb3 20. g4 Nxd4 21. Qc1 {1-0 Gajewski,G (2608)-Kollars,D (2621) POL-chT Ekstraliga 2021 (8.2)}) 15... Rab8 {[%emt 0:09:44]} (15... Rad8 $5) 16. O-O {[%emt 0:04:17]} (16. g3 $11 {deserves consideration.}) 16... Ba6 $2 {[%emt 0:13:09]} (16... f4 $15 {stays ahead.} 17. Bc1 Nb3) 17. h6 {[%emt 0:07:26] Black is now going downhill.} (17. d5 $1 $16) 17... g6 {[%emt 0:00:38] [#]} (17... f4 $1 $14) 18. d5 $1 $16 {[%emt 0:03:48]} Bb7 {[%emt 0:20:06]} (18... Rbd8 $16 19. Ng5 Nxd5) 19. dxe6 $18 {[%emt 0:03:10]} Qxe6 {[%emt 0:05:44]} 20. Nb5 {[%emt 0:00:46][%csl LRa7,LRc7]} f4 {[%emt 0:13:52]} (20... c5 $16 {might work better.} 21. Bf4 (21. Nxa7 Nb3 $16) 21... g5) 21. Nxc7 {[%emt 0:03:24]} Qf5 {[%emt 0:01:49]} 22. Qxf5 {[%emt 0:00:56]} Rxf5 {[%emt 0:00:18]} 23. Bd2 {[%emt 0:03:14]} Nb3 {[%emt 0:01:44][%cal Ba5b3,Bb3c5,Bc5e4,Be4g5][%mdl 32]} 24. Bc3 {[%emt 0:00:43]} Nc5 {[%emt 0:08:26]} 25. Nb5 $36 {[%emt 0:04:36][%cal Bc7b5,Bb5d6,Bd6f5,Bf5e7][%mdl 2080] White is on the roll.} Ne4 {[%emt 0:00:47]} 26. Bd4 {[%emt 0:03:00][%cal Od4b6]} Bc5 {[%emt 0:00:54]} (26... Ng5 $142 27. Nh4 (27. Nxa7 Nxf3+ 28. Bxf3 Bxf3 $11) 27... f3 28. Nxf5 gxf5 29. gxf3 (29. Nxa7 $2 fxe2 30. Bxb6 exf1=R+ 31. Rxf1 Ne6 $19) 29... Nxf3+ 30. Bxf3 Bxf3) 27. Rfe1 {[%emt 0:03:51]} Bxd4 {[%emt 0:02:34]} 28. Rxd4 {[%emt 0:01:01]} Ng5 {[%emt 0:01:12]} 29. Nd6 {[%emt 0:04:43]} (29. Nxa7 Re8 30. Nb5 (30. Bxc4+ Nxc4 31. Nxg5 Rxg5 $17) 30... Bxf3 $18) 29... Bxf3 {[%emt 0:00:09][%cal Bb7f3,Bf3e2,Be2d3][%mdl 32]} 30. Nxf5 {[%emt 0:04:49]} (30. gxf3 Rxe5 31. Kf1 (31. Nxc4 $2 {loses.} Rxe2 32. Rxe2 Nxf3+ 33. Kg2 Nxd4 $19) 31... Nf7 $16) 30... Bxe2 {[%emt 0:00:05]} 31. Ne7+ {[%emt 0:00:05]} Kf7 {[%emt 0:01:23] [#]} 32. Nc6 {[%emt 0:00:07]} ({Not} 32. Rxf4+ Kxe7 33. Rxe2 Rd8 $16) 32... Rc8 {[%emt 0:00:54]} 33. Rxf4+ {[%emt 0:01:12]} Ke8 {[%emt 0:00:09]} 34. Nxa7 {[%emt 0:00:19]} Bd3 {[%emt 0:01:25]} (34... Ra8 $142 35. Nb5 Nd5) 35. Nxc8 {[%emt 0:02:00]} Nxc8 {[%emt 0:00:04]} 36. Rd4 {[%emt 0:00:24]} Ne7 {[%emt 0:01:42]} 37. Re3 {[%emt 0:01:06]} Ne6 {[%emt 0:00:34]} 38. Rdxd3 {[%emt 0:00:46]} cxd3 {[%emt 0:00:09]} 39. Rxd3 {[%emt 0:00:04]} Nf4 {[%emt 0:00:12]} 40. Rd6 {[%emt 0:00:25]} Nf5 {[%emt 0:00:27]} 41. Rf6 {[%emt 0:01:48]} Nd3 {[%emt 0:00:00] [#]} 42. Rxg6 $1 {[%emt 0:00:00]} Nxb2 {[%emt 0:00:00] [#]} (42... Ke7 43. a4) 43. g4 $1 {[%emt 0:00:00]} Nh4 {[%emt 0:00:00]} (43... Ne7 44. Rg7) 44. Rg8+ {[%emt 0:00:00]} Kf7 {[%emt 0:00:00]} 45. Rg7+ {[%emt 0:00:00]} Ke6 {[%emt 0:00:00]} 46. Rxh7 {[%emt 0:00:00] Rg7 is the strong threat.} Nd3 {[%emt 0:00:00]} 47. Rg7 {[%emt 0:00:00]} Nxe5 {[%emt 0:00:00]} 48. h7 {[%emt 0:00:00] Intending f4 and mate.} Neg6 {[%emt 0:00:00] [#]} 49. f4 $1 {[%emt 0:00:00] Weighted Error Value: White=0.22 (precise) /Black=0.64  Mistake:       	White=4     	Black=6      Inaccurate:     	White=1     	Black=4      OK:         	White=11    	Black=10     Best:        	White=4     	Black=1      Strong:       	White=1     	---} 1-0

[Event "Slovakian ECo-C Extraliga 2024-25"]
[Site "Slovakia"]
[Date "2025.01.18"]
[Round "3.1"]
[White "Neugebauer, Martin"]
[Black "Mihok, Oliver"]
[Result "1/2-1/2"]
[Annotator "TA"]
[ECO "B04"]
[WhiteElo "2509"]
[BlackElo "2536"]
[PlyCount "59"]
[EventDate "2024.09.12"]
[EventType "team-tourn"]
[EventCountry "SVK"]
[SourceTitle "playchess.com"]
[Source "ChessBase"]
[SourceQuality "1"]
[TimeControl "5400+30"]

{[%evp 14,59,57,39,42,17,20,22,47,18,24,5,4,-25,-4,-8,-9,-22,-14,-22,-18,-16,-16,-37,-49,-46,-20,-14,0,0,-13,-14,-15,-15,-14,-15,-12,-7,-8,-8,-7,-7,-7,-7,-7,-7,-7,-7]} 1. e4 {[%emt 0:02:58]} Nf6 {[%emt 0:00:04]} 2. e5 {[%emt 0:00:04]} Nd5 {[%emt 0:00:03]} 3. d4 {[%emt 0:00:03]} d6 {[%emt 0:00:03]} 4. Nf3 {[%emt 0:00:03]} dxe5 {[%emt 0:00:07]} 5. Nxe5 {[%emt 0:00:02]} g6 {[%emt 0:00:07]} 6. Bc4 {[%emt 0:00:03]} c6 {[%emt 0:00:07]} 7. O-O {[%emt 0:00:05]} Bg7 {[%emt 0:00:05]} 8. Nd2 {[%emt 0:00:05]} Nd7 {[%emt 0:00:07] is the legacy move (8...0-0). B04: Alekhine's Defence: 4 Nf3.} 9. Nef3 {[%emt 0:00:06]} O-O {[%emt 0:00:05]} 10. Re1 {[%emt 0:00:32]} b5 {[%emt 0:00:06]} 11. Bf1 {[%emt 0:00:32]} Bb7 $146 {[%emt 0:00:22]} (11... N7b6 12. h3 Qc7 13. c3 a5 14. Ne4 Bf5 15. Nc5 Nd7 16. Nxd7 Bxd7 17. a4 e6 {1-0 Jansa,V (2458)-Keller,M (2205) Passau op 8th 2000 (3)}) 12. Ne4 {[%emt 0:00:07]} Qc7 {[%emt 0:00:06]} 13. c4 {[%emt 0:00:05]} bxc4 {[%emt 0:00:06]} 14. Bxc4 {[%emt 0:00:03]} c5 {[%emt 0:00:05]} 15. dxc5 {[%emt 0:00:04] [#]} Nxc5 $1 {[%emt 0:00:07]} 16. Bxd5 {[%emt 0:00:03]} Rad8 $1 {[%emt 0:00:09]} 17. Nxc5 {[%emt 0:00:05]} Rxd5 {[%emt 0:00:08]} 18. Qb3 {[%emt 0:00:05]} Rxc5 {[%emt 0:00:07]} 19. Be3 {[%emt 0:00:04]} Rc4 {[%emt 0:00:07] And now ...Bxf3 would win.} 20. Rac1 {[%emt 0:00:05] The position is equal.} Bd5 {[%emt 0:00:06]} 21. Rxc4 {[%emt 0:00:04]} (21. Qb5 {is interesting.} Rc8 22. Qxd5 Rxc1 23. Bxc1 Qxc1 24. g3) 21... Bxc4 {[%emt 0:00:04] A strong pair of Bishops.} 22. Rc1 {[%emt 0:00:05]} Bxb3 {[%emt 0:00:08]} 23. Rxc7 {[%emt 0:00:03]} Bxa2 {[%emt 0:00:06]} 24. Rxa7 {[%emt 0:00:04]} Rd8 {[%emt 0:00:07] [#] ( -> ...Rd1+)} 25. h3 {[%emt 0:00:04]} Bd5 {[%emt 0:00:08]} 26. b4 {[%emt 0:00:03]} Rb8 {[%emt 0:00:04]} 27. Rxe7 {[%emt 0:00:34]} Bf8 {[%emt 0:00:30]} 28. Re5 {[%emt 0:00:30]} Bxf3 {[%emt 0:00:12]} 29. gxf3 {[%emt 0:00:04]} Bxb4 {[%emt 0:00:09]} 30. Kg2 {[%emt 0:00:03] Weighted Error Value: White=0.09 (flawless) /Black=0.04 (flawless)   Inaccurate:     	White=2     	Black=1      OK:         	White=10    	Black=12     Best:        	White=1     	Black=1      Strong:       	---       	Black=1} 1/2-1/2

[Event "Slovakian ECo-C Extraliga 2024-25"]
[Site "Slovakia"]
[Date "2025.01.18"]
[Round "3.1"]
[White "Plat, Vojtech"]
[Black "Sahidi, Samir"]
[Result "1/2-1/2"]
[Annotator "TA"]
[ECO "B50"]
[WhiteElo "2459"]
[BlackElo "2494"]
[PlyCount "31"]
[EventDate "2024.09.12"]
[EventType "team-tourn"]
[EventCountry "SVK"]
[SourceTitle "playchess.com"]
[Source "ChessBase"]
[SourceQuality "1"]
[TimeControl "5400+30"]

{[%evp 14,31,11,20,15,20,41,45,41,31,46,0,57,10,16,18,15,4,17,8]} 1. e4 {[%emt 0:00:04]} c5 {[%emt 0:00:20]} 2. Nf3 {[%emt 0:00:06]} d6 {[%emt 0:00:05]} 3. c3 {[%emt 0:00:37]} Nf6 {[%emt 0:00:14]} 4. Be2 {[%emt 0:00:10]} g6 {[%emt 0:01:18]} 5. O-O {[%emt 0:00:06]} Bg7 {[%emt 0:00:27]} 6. Bb5+ {[%emt 0:00:07]} Nbd7 {[%emt 0:02:48]} 7. Re1 {[%emt 0:00:25]} a6 {[%emt 0:01:05]} 8. Bf1 {[%emt 0:00:11]} O-O {[%emt 0:04:45]} 9. a4 {[%emt 0:02:01]} b6 {[%emt 0:02:36]} 10. d4 {[%emt 0:00:44][%cal Bd2d4,Bd4d5][%mdl 32]} Bb7 {[%emt 0:04:51]} 11. d5 {[%emt 0:05:52]} Qc7 {[%emt 0:02:25]} 12. Bf4 {[%emt 0:03:12]} (12. c4 $14) 12... Rfe8 {[%emt 0:03:26]} ({Black should play} 12... Nh5 $11 13. Bc1 Rae8) 13. Nbd2 {[%emt 0:02:46]} (13. h3 $14) 13... Nh5 $11 {[%emt 0:02:25]} 14. Be3 {[%emt 0:06:48]} e6 {[%emt 0:02:09]} 15. dxe6 {[%emt 0:01:08]} fxe6 {[%emt 0:02:22]} 16. Qc2 {[%emt 0:04:03]} 1/2-1/2

[Event "Slovakian ECo-C Extraliga 2024-25"]
[Site "Slovakia"]
[Date "2025.01.18"]
[Round "3.1"]
[White "Antoniewski, Rafal"]
[Black "Haring, Filip"]
[Result "1/2-1/2"]
[Annotator "TA"]
[ECO "E46"]
[WhiteElo "2444"]
[BlackElo "2469"]
[PlyCount "46"]
[EventDate "2024.09.12"]
[EventType "team-tourn"]
[EventCountry "SVK"]
[SourceTitle "playchess.com"]
[Source "ChessBase"]
[SourceQuality "1"]
[TimeControl "5400+30"]

{[%evp 19,46,0,19,12,24,31,24,0,0,0,0,0,-2,-34,-14,-27,-27,-26,-41,-44,-22,-37,-17,-33,0,-32,0,-26,0]} 1. d4 {[%emt 0:00:09]} Nf6 {[%emt 0:00:15]} 2. c4 {[%emt 0:00:35]} e6 {[%emt 0:00:23]} 3. Nc3 {[%emt 0:00:28]} Bb4 {[%emt 0:00:17]} 4. e3 {[%emt 0:00:38]} O-O {[%emt 0:00:37]} 5. Bd2 {[%emt 0:00:18]} d5 {[%emt 0:02:40]} 6. Nf3 {[%emt 0:00:32]} b6 {[%emt 0:01:02]} 7. Rc1 {[%emt 0:01:38]} a6 {[%emt 0:03:14]} 8. cxd5 {[%emt 0:07:50]} exd5 {[%emt 0:00:10]} 9. Bd3 {[%emt 0:02:04]} Bb7 {[%emt 0:01:35][%cal Bc8b7,Bb7c6,Bc6d7][%mdl 32]} 10. O-O {[%emt 0:04:39]} Bd6 {[%emt 0:00:50]} 11. Ne5 {[%emt 0:03:15]} c5 {[%emt 0:01:37]} 12. f4 {[%emt 0:01:39]} Nc6 {[%emt 0:02:10]} 13. Be1 {[%emt 0:00:51] White has an edge.} cxd4 {[%emt 0:06:04]} 14. Nxc6 {[%emt 0:01:12]} Bxc6 {[%emt 0:00:05]} 15. Ne2 {[%emt 0:00:05]} Bd7 {[%emt 0:06:32]} 16. Nxd4 {[%emt 0:03:19]} Re8 {[%emt 0:05:20]} 17. Qf3 {[%emt 0:15:30]} Qe7 {[%emt 0:07:17]} 18. Bd2 {[%emt 0:01:10]} Bc5 {[%emt 0:04:40]} 19. Rfe1 {[%emt 0:05:10]} Qd6 {[%emt 0:07:11]} 20. Nb3 {[%emt 0:11:51]} Bc6 {[%emt 0:11:46]} 21. Nd4 {[%emt 0:12:41]} Bd7 {[%emt 0:10:03]} 22. Nb3 {[%emt 0:00:25]} Bc6 {[%emt 0:01:29]} 23. Nd4 {[%emt 0:01:55] [#] Threatens to win with Nxc6.} Bd7 {Weighted Error Value: White=0.08 (flawless) /Black=0.10 (very precise) .  Inaccurate:     	White=1     	Black=1      OK:         	White=6     	Black=5} 1/2-1/2

[Event "Slovakian ECo-C Extraliga 2024-25"]
[Site "Slovakia"]
[Date "2025.01.18"]
[Round "3.1"]
[White "Hrbek, Stepan"]
[Black "Aczel, Gergely"]
[Result "1/2-1/2"]
[Annotator "TA"]
[ECO "D35"]
[WhiteElo "2409"]
[BlackElo "2482"]
[PlyCount "92"]
[EventDate "2024.09.12"]
[EventType "team-tourn"]
[EventCountry "SVK"]
[SourceTitle "playchess.com"]
[Source "ChessBase"]
[SourceQuality "1"]
[TimeControl "5400+30"]

{[%evp 15,92,14,20,11,17,16,21,0,0,0,16,8,8,-14,17,0,0,0,0,0,10,3,9,12,4,-5,0,-18,19,32,52,39,93,93,108,53,72,61,60,0,8,4,6,0,15,0,0,-10,-14,-6,0,-5,0,0,0,-19,-19,-19,0,1,8,13,13,1,18,18,18,18,18,18,40,6,6,6,14,9,17,0,0]} 1. d4 {[%emt 0:00:04]} Nf6 {[%emt 0:00:06]} 2. c4 {[%emt 0:00:08]} e6 {[%emt 0:00:06]} 3. Nc3 {[%emt 0:00:07]} d5 {[%emt 0:00:53]} 4. cxd5 {[%emt 0:00:15]} exd5 {[%emt 0:00:04]} 5. Bg5 {[%emt 0:00:10]} c6 {[%emt 0:00:05]} 6. e3 {[%emt 0:00:11]} h6 {[%emt 0:00:11]} 7. Bh4 {[%emt 0:00:08]} Be7 {[%emt 0:00:11]} 8. Bd3 {[%emt 0:00:17]} O-O {[%emt 0:00:20]} 9. Nge2 {[%emt 0:00:49]} Re8 {[%emt 0:00:59]} 10. O-O {[%emt 0:00:34]} Nbd7 {[%emt 0:02:55][%cal Bb8d7,Bd7f8,Bf8e6][%mdl 32]} 11. a4 {[%emt 0:02:31]} a5 {[%emt 0:08:07]} 12. f3 {[%emt 0:01:51]} Nf8 {[%emt 0:02:46]} 13. Bf2 {[%emt 0:13:49]} Ne6 {[%emt 0:13:49]} 14. h3 {[%emt 0:01:42]} c5 {[%emt 0:16:32]} 15. Nb5 {[%emt 0:01:37]} Bd7 {[%emt 0:04:11]} 16. Bg3 {[%emt 0:09:55]} Qb6 {[%emt 0:03:03]} 17. Be5 {[%emt 0:08:55]} Rac8 {[%emt 0:00:22]} 18. Nec3 {[%emt 0:12:43]} Bxb5 {[%emt 0:07:05]} 19. Bxb5 {[%emt 0:06:09]} Red8 {[%emt 0:01:51]} 20. Qd2 {[%emt 0:06:04]} cxd4 {[%emt 0:14:57]} 21. exd4 {[%emt 0:00:18]} Nh5 {[%emt 0:00:42]} (21... Ne8 $5) 22. Rac1 {[%emt 0:09:35][%cal Oc3d5]} Bb4 {[%emt 0:10:45]} 23. Qe3 {[%emt 0:03:46][%cal Oc3d5] Hoping for Nxd5!.} Bxc3 {[%emt 0:06:34]} ({Don't go for} 23... f6 $2 24. Nxd5 Qa7 25. Rxc8 Rxc8 26. Bd7 $18) ({Better is} 23... Nf6 $14) 24. bxc3 $16 {[%emt 0:03:43]} Nf8 {[%emt 0:00:17]} 25. g4 {[%emt 0:05:09]} (25. Rb1 $16) 25... Nf6 $14 {[%emt 0:00:05] Repels Bd7} 26. Rb1 {[%emt 0:00:24] White is more active.} Qe6 {[%emt 0:01:03]} 27. Bd3 {[%emt 0:00:35]} ({White should play} 27. Rfe1 $14) 27... Qc6 {[%emt 0:00:35]} 28. Rb3 {[%emt 0:06:08]} N6d7 {[%emt 0:00:29][%cal Od7e5]} 29. Bg3 {[%emt 0:01:21]} Qxa4 {[%emt 0:04:04]} 30. Rxb7 {[%emt 0:01:24][%cal Bb3b7,Bb7a7,Ba7a5,Ba5b5][%mdl 32]} Qc6 {[%emt 0:00:02]} 31. Ra7 {[%emt 0:00:32]} Qxc3 {[%emt 0:00:33]} 32. Be1 {[%emt 0:00:18] This pair of bishops is nice.} Qb2 {[%emt 0:01:14] next ...Re8 is good for Black.} 33. Rxa5 {[%emt 0:02:33]} Nf6 {[%emt 0:01:10]} 34. Rb5 {[%emt 0:01:21]} Qa2 {[%emt 0:00:28]} 35. Bh4 {[%emt 0:00:53]} Re8 {[%emt 0:00:08]} 36. Qf2 {[%emt 0:00:12]} Qxf2+ {[%emt 0:00:36]} 37. Kxf2 {[%emt 0:00:20]} Ne6 {[%emt 0:01:06]} 38. Bxf6 {[%emt 0:00:41]} gxf6 {[%emt 0:00:02]} 39. Kg3 {[%emt 0:01:21]} (39. Rxd5 $2 Nf4 40. Be4 Nxd5 (40... Nxh3+ 41. Kg3 $11) 41. Bxd5 Red8 $17) 39... Nxd4 {[%emt 0:01:02] ...Rc3 is the strong threat.} 40. Rxd5 {[%emt 0:00:12]} Ne2+ {[%emt 0:00:26]} 41. Bxe2 {[%emt 0:00:00]} Rxe2 $11 {[%emt 0:00:00] KRR-KRR} 42. Rb1 {[%emt 0:00:00]} Rce8 {[%emt 0:00:00]} 43. Rf5 {[%emt 0:00:00]} Kg7 {[%emt 0:00:00]} 44. Rf4 {[%emt 0:00:00]} R2e5 {[%emt 0:00:00]} 45. Rbb4 {[%emt 0:00:00]} Re1 {[%emt 0:00:00]} 46. Rf5 {[%emt 0:00:00]} R8e5 {[%emt 0:00:00]} 1/2-1/2